bitfinex/quotes_BTCUSD_20260215
["timestamp","ask_amount","ask_price","bid_price","bid_amount"]
[1771123631432,0.02368206,69581.0,69576.0,4e-05]
[1771123632190,0.07185889,69581.0,69576.0,4e-05]
[1771123632489,0.02368206,69580.0,69576.0,0.00404]
[1771123632683,0.02368206,69580.0,69576.0,4e-05]
[1771123633641,0.07185793,69582.0,69571.0,0.0922]
[1771123633642,0.02264216,69581.0,69571.0,0.0922]
[1771123633888,4e-05,69584.0,69571.0,0.0922]
[1771123633889,0.02264216,69574.0,69571.0,0.0002]
[1771123634237,0.07186695,69573.0,69566.0,0.07207409]
[1771123634441,0.02264216,69572.0,69567.0,0.0718725]
[1771123635187,0.02264216,69572.0,69571.0,0.003]
[1771123635487,0.02264216,69572.0,69568.0,0.07187195]
[1771123635890,0.00012,69580.0,69567.0,0.005]
[1771123636092,0.00012,69580.0,69573.0,0.07186634]
[1771123636251,0.00012,69580.0,69571.0,0.07206826]
[1771123636453,0.07186106,69579.0,69572.0,0.07186792]
[1771123637686,0.07186106,69579.0,69572.0,0.07286792]
[1771123638084,0.07186106,69579.0,69572.0,0.07186792]
[1771123639015,0.07186106,69579.0,69572.0,0.07286792]
[1771123640545,0.07186106,69579.0,69572.0,0.07186792]
[1771123643237,4e-05,69576.0,69572.0,0.07186792]
[1771123644072,4e-05,69576.0,69572.0,0.07206792]
[1771123648735,0.07190389,69576.0,69572.0,0.0002]
[1771123648945,0.01933913,69575.0,69572.0,0.0002]
[1771123650324,0.01961199,69576.0,69572.0,0.0002]
[1771123650781,0.06012165,69571.0,69564.0,0.0002]
[1771123650909,0.07187205,69569.0,69564.0,0.0002]
[1771123651113,0.07187109,69570.0,69564.0,0.0002]
[1771123651319,0.02264216,69560.0,69547.0,0.02387433]
[1771123651555,0.02256192,69560.0,69557.0,0.00033059]
[1771123651756,0.02256192,69560.0,69555.0,0.07208349]
[1771123651757,0.07188245,69558.0,69555.0,0.0002]
[1771123651970,0.07188401,69557.0,69550.0,0.07200991]
[1771123652142,0.02260204,69556.0,69550.0,0.07200991]
[1771123652353,0.02260204,69556.0,69552.0,0.07204273]
[1771123652527,0.07188105,69560.0,69552.0,0.0001549]
[1771123652750,0.09452321,69560.0,69553.0,0.07188752]
[1771123653162,0.07184093,69560.0,69555.0,0.0002]
[1771123653530,0.02264216,69559.0,69555.0,0.0002]
[1771123653706,0.28749825,69566.0,69555.0,0.0002]
[1771123653707,0.06012165,69562.0,69555.0,0.0002]
[1771123653909,0.02264216,69557.0,69548.0,0.0002]
[1771123654108,0.02264216,69552.0,69548.0,0.0002]
[1771123654311,0.02264216,69551.0,69548.0,0.0002]
[1771123656112,0.02264216,69551.0,69540.0,0.72141019]
[1771123656113,0.00012,69550.0,69540.0,0.72141019]
[1771123656261,0.00012,69550.0,69544.0,0.07189607]
[1771123656667,0.00012,69550.0,69548.0,0.003]
[1771123656866,0.00012,69550.0,69544.0,0.07189607]
[1771123657145,0.00012,69550.0,69541.0,0.06226913]
[1771123657354,0.07187685,69564.0,69554.0,0.07188573]
[1771123657478,0.07187851,69562.0,69554.0,0.07188573]
[1771123657873,0.07187921,69562.0,69554.0,0.07188573]
[1771123658109,0.28139745,69563.0,69556.0,0.0718844]
[1771123658323,4e-05,69558.0,69556.0,0.0716444]
[1771123658519,4e-05,69558.0,69554.0,0.07188573]
[1771123659433,4e-05,69558.0,69554.0,0.07488573]
[1771123659637,4e-05,69558.0,69555.0,0.07188555]
[1771123659834,4e-05,69558.0,69554.0,0.07188573]
[1771123660034,4e-05,69558.0,69554.0,0.07288573]
[1771123661002,4e-05,69558.0,69555.0,0.07188555]
[1771123661629,4e-05,69558.0,69554.0,0.07288573]
[1771123662026,4e-05,69558.0,69554.0,0.07188573]
[1771123662236,4e-05,69558.0,69554.0,0.07288573]
[1771123662636,4e-05,69558.0,69554.0,0.07188573]
[1771123662881,4e-05,69558.0,69554.0,0.07288573]
[1771123663641,4e-05,69558.0,69554.0,0.001]
[1771123664067,4e-05,69558.0,69554.0,0.07288628]
[1771123664262,4e-05,69558.0,69555.0,0.07188521]
[1771123664642,4e-05,69558.0,69554.0,0.07288644]
[1771123665249,4e-05,69558.0,69554.0,0.07188644]
[1771123666578,4e-05,69558.0,69552.0,0.07188796]
[1771123666803,0.00044,69558.0,69552.0,0.07188796]
[1771123667187,0.00044,69558.0,69554.0,0.07188593]
[1771123667883,0.00044,69558.0,69552.0,0.07188796]
[1771123668054,0.02001199,69558.0,69552.0,0.07188796]
[1771123668259,0.02001199,69558.0,69553.0,0.07188759]
[1771123668475,0.00544,69558.0,69553.0,0.07188759]
[1771123668675,0.00044,69558.0,69553.0,0.07188759]
[1771123669063,0.00444,69558.0,69553.0,0.07188759]
[1771123669263,0.00044,69558.0,69553.0,0.07188759]
[1771123669666,0.00444,69558.0,69553.0,0.07188759]
[1771123669909,0.00044,69558.0,69553.0,0.07188759]
[1771123670247,0.00444,69558.0,69553.0,0.07188759]
[1771123671305,0.00044,69558.0,69553.0,0.07188759]
[1771123671507,0.00044,69558.0,69554.0,0.07188591]
[1771123671715,0.00444,69558.0,69553.0,0.07188759]
[1771123671922,0.00044,69558.0,69553.0,0.07188759]
[1771123672480,0.00044,69558.0,69552.0,0.07188821]
[1771123672823,0.00444,69558.0,69552.0,0.07188821]
[1771123673023,0.02401199,69558.0,69552.0,0.07188821]
[1771123674345,0.02001199,69558.0,69552.0,0.07188821]
[1771123674712,0.00444,69558.0,69555.0,0.07188484]
[1771123674912,0.00016,69560.0,69556.0,0.07188441]
[1771123675118,0.00016,69560.0,69555.0,0.07188513]
[1771123675322,0.00016,69560.0,69554.0,0.07188453]
[1771123675764,0.003,69558.0,69555.0,0.07188493]
[1771123675964,0.00016,69560.0,69556.0,0.07188426]
[1771123676373,0.00416,69560.0,69554.0,0.07188622]
[1771123676939,0.00416,69560.0,69555.0,0.07188493]
[1771123677455,4e-05,69564.0,69554.0,0.02300145]
[1771123677694,4e-05,69564.0,69560.0,0.07187997]
[1771123677875,4e-05,69564.0,69559.0,0.13299998]
[1771123678910,4e-05,69564.0,69559.0,0.071881]
[1771123679078,4e-05,69564.0,69560.0,0.07188]
[1771123679289,4e-05,69564.0,69561.0,0.07187899]
[1771123679510,4e-05,69564.0,69560.0,0.07188]
[1771123679687,4e-05,69564.0,69562.0,0.07187761]
[1771123680089,4e-05,69564.0,69561.0,0.07187907]
[1771123680671,0.0004,69567.0,69566.0,0.07187419]
[1771123680885,0.00044,69572.0,69565.0,0.07187423]
[1771123681135,0.00057045,69572.0,69566.0,0.07187356]
[1771123681353,0.07243871,69572.0,69565.0,0.07187423]
[1771123681676,0.02433268,69567.0,69561.0,0.003]
[1771123681821,0.09621691,69557.0,69554.0,0.0002]
[1771123681995,0.02433268,69556.0,69554.0,0.0002]
[1771123682201,0.02433268,69556.0,69554.0,0.0002964]
[1771123682903,0.02433268,69556.0,69554.0,0.0022964]
[1771123683292,0.09621823,69555.0,69550.0,0.00012]
[1771123683489,0.07188953,69553.0,69544.0,0.07228618]
[1771123683747,0.02433268,69551.0,69544.0,0.07228606]
[1771123683950,0.07189065,69551.0,69544.0,0.0003895]
[1771123684328,0.02433268,69550.0,69546.0,0.07189481]
[1771123684809,0.02433268,69550.0,69544.0,0.0003895]
[1771123685009,0.02433268,69550.0,69547.0,0.0012]
[1771123685204,0.02433268,69550.0,69547.0,0.0002]
[1771123686402,0.02433268,69550.0,69547.0,0.07209381]
[1771123686805,0.0718886,69554.0,69547.0,0.07209381]
[1771123688003,0.02433268,69555.0,69547.0,0.0002]
[1771123688206,4e-05,69550.0,69548.0,0.0718121]
[1771123688417,4e-05,69552.0,69549.0,0.07189116]
[1771123688819,4e-05,69554.0,69549.0,0.07189116]
[1771123689023,0.02437268,69554.0,69549.0,0.07189116]
[1771123689320,0.02437268,69554.0,69548.0,0.07189249]
[1771123690349,0.02437268,69554.0,69547.0,0.0002]
[1771123690548,0.07189041,69551.0,69547.0,0.0002]
[1771123690748,0.02433268,69550.0,69547.0,0.0002]
[1771123691266,0.09622383,69550.0,69547.0,0.0002]
[1771123691464,0.02433268,69549.0,69547.0,0.0002]
[1771123691790,0.07189279,69548.0,69547.0,0.0002]
[1771123692203,0.07189279,69548.0,69540.0,0.00036]
[1771123692397,0.0962245,69549.0,69542.0,0.07193893]
[1771123692946,0.07189182,69549.0,69542.0,0.07193893]
[1771123693099,0.02433268,69553.0,69542.0,4e-05]
[1771123693320,0.09651679,69548.0,69542.0,4e-05]
[1771123693641,0.09651679,69548.0,69547.0,0.001]
[1771123693798,0.09651679,69548.0,69542.0,4e-05]
[1771123694230,0.09651679,69548.0,69542.0,0.00104]
[1771123694437,0.09651679,69548.0,69547.0,0.0002]
[1771123694925,0.09651679,69548.0,69547.0,0.0032]
[1771123695121,0.09651679,69548.0,69547.0,0.0002]
[1771123695588,0.02462307,69542.0,69536.0,0.07214515]
[1771123695791,0.02462307,69542.0,69538.0,0.00047556]
[1771123697767,0.02462307,69542.0,69538.0,0.00547556]
[1771123700539,0.02462307,69542.0,69538.0,0.07737855]
[1771123701070,0.02462307,69542.0,69538.0,0.00547556]
[1771123701434,0.02462307,69542.0,69538.0,0.00567556]
[1771123701837,0.07189996,69542.0,69538.0,0.00567556]
[1771123702048,0.02462307,69541.0,69538.0,0.00067556]
[1771123702446,0.00053972,69535.0,69524.0,0.0002]
[1771123702669,0.07175368,69528.0,69524.0,0.00024354]
[1771123702875,0.0075071,69535.0,69524.0,0.00024354]
[1771123702876,0.07191657,69525.0,69524.0,0.00024354]
[1771123703079,0.34448,69532.0,69512.0,0.0001895]
[1771123703080,0.02462307,69521.0,69512.0,0.0001895]
[1771123703257,0.07192765,69515.0,69512.0,0.00023306]
[1771123703450,0.07192899,69513.0,69512.0,0.00023306]
[1771123704323,0.07192899,69513.0,69512.0,0.00123306]
[1771123704523,0.07192899,69513.0,69512.0,4.356e-05]
[1771123704745,0.07192899,69513.0,69510.0,0.00012]
[1771123704746,0.07193106,69511.0,69510.0,1e-08]
[1771123704889,0.07193106,69511.0,69510.0,0.00011252]
[1771123706989,0.07193106,69511.0,69510.0,0.00111252]
[1771123707186,0.07193106,69511.0,69510.0,0.00011252]
[1771123707592,0.07193106,69511.0,69510.0,0.00211252]
[1771123708357,0.07194158,69501.0,69493.0,0.07194915]
[1771123708559,0.07194158,69501.0,69495.0,0.06160036]
[1771123708772,0.07194314,69500.0,69495.0,0.06160036]
[1771123709335,0.07194437,69499.0,69495.0,0.06160036]
[1771123709831,0.07194158,69501.0,69495.0,0.06160036]
[1771123710144,0.07194158,69501.0,69497.0,0.06160036]
[1771123710303,0.07194292,69500.0,69497.0,0.06160036]
[1771123711104,0.28776234,69502.0,69496.0,0.0002]
[1771123711323,0.01393181,69523.0,69497.0,0.06160036]
[1771123711624,0.01393181,69523.0,69501.0,0.06160036]
[1771123711625,0.0719359,69507.0,69501.0,0.06160036]
[1771123711782,0.07193623,69506.0,69501.0,0.06160036]
[1771123712555,0.28773461,69509.0,69501.0,0.06160036]
[1771123712690,0.07193901,69504.0,69501.0,0.06160036]
[1771123713116,0.07193757,69505.0,69501.0,0.06160036]
[1771123714000,0.02474307,69510.0,69496.0,0.06180036]
[1771123714126,0.07194424,69499.0,69494.0,0.0002679]
[1771123714521,0.07194424,69499.0,69494.0,0.06186826]
[1771123715339,0.07194424,69499.0,69494.0,0.06586826]
[1771123715834,0.07194451,69498.0,69494.0,0.06586826]
[1771123716118,0.07182451,69498.0,69494.0,0.0042679]
[1771123716665,0.07194334,69501.0,69494.0,0.0002679]
[1771123716863,0.07194334,69501.0,69493.0,0.0545651]
[1771123717567,0.07194334,69501.0,69494.0,0.0729479]
[1771123717738,0.07194334,69501.0,69494.0,0.0719479]
[1771123718308,4e-05,69496.0,69494.0,0.13346826]
[1771123720617,4e-05,69496.0,69494.0,0.13546826]
[1771123720949,4e-05,69496.0,69494.0,0.0738679]
[1771123721131,4e-05,69496.0,69494.0,0.002]
[1771123722962,4e-05,69496.0,69491.0,0.05970914]
[1771123723171,4e-05,69496.0,69494.0,0.002]
[1771123723835,4e-05,69496.0,69493.0,0.0002]
[1771123724238,4e-05,69496.0,69494.0,0.002]
[1771123724642,4e-05,69496.0,69493.0,0.0002]
[1771123724843,0.07194762,69495.0,69493.0,0.0002]
[1771123725045,0.07194865,69494.0,69493.0,0.0002]
[1771123725243,0.07195072,69492.0,69491.0,0.00013073]
[1771123725541,0.09638892,69493.0,69491.0,0.00013073]
[1771123725860,0.02443923,69493.0,69491.0,0.00013073]
[1771123726768,0.07194782,69495.0,69491.0,0.00013073]
[1771123727109,0.09638705,69495.0,69491.0,0.00013073]
[1771123727327,0.07194782,69495.0,69491.0,0.00013073]
[1771123727470,0.09638795,69494.0,69491.0,0.00013073]
[1771123728156,0.02443923,69494.0,69486.0,0.03005124]
[1771123728378,0.02456958,69494.0,69487.0,0.0719559]
[1771123728795,0.09651891,69494.0,69485.0,0.07195703]
[1771123729003,0.07195242,69491.0,69483.0,0.07195941]
[1771123729210,0.07195549,69488.0,69481.0,0.13167116]
[1771123729654,0.07195797,69485.0,69480.0,0.00012]
[1771123730382,0.0963972,69485.0,69480.0,0.00012]
[1771123730918,0.0983972,69485.0,69480.0,0.00012]
[1771123731947,0.09640134,69481.0,69479.0,1e-08]
[1771123732146,0.02443923,69480.0,69479.0,1e-08]
[1771123732366,0.09640238,69480.0,69479.0,1e-08]
[1771123733297,3.999e-05,69478.0,69471.0,0.1316809]
[1771123733471,3.999e-05,69478.0,69472.0,0.07197078]
[1771123733671,3.999e-05,69478.0,69472.0,0.07217078]
[1771123733875,0.07114564,69479.0,69472.0,0.07217078]
[1771123734127,0.07114564,69479.0,69472.0,0.07217085]
[1771123734262,0.07196526,69478.0,69472.0,0.07217085]
[1771123734955,4e-05,69480.0,69472.0,0.07200382]
[1771123735158,4e-05,69480.0,69472.0,3.297e-05]
[1771123735597,0.0719582,69485.0,69478.0,0.07196517]
[1771123735812,0.0719582,69485.0,69479.0,0.05970914]
[1771123736039,0.07199893,69486.0,69479.0,0.05970914]
[1771123736040,4e-05,69486.0,69479.0,0.05970914]
[1771123736155,0.00016,69490.0,69487.0,0.07195494]
[1771123736524,0.00016,69490.0,69483.0,0.05970914]
[1771123736525,0.01973199,69490.0,69483.0,0.05970914]
[1771123736660,0.07195412,69489.0,69483.0,0.05970914]
[1771123736868,0.01957199,69488.0,69482.0,0.07196037]
[1771123737367,0.01957199,69488.0,69487.0,0.007]
[1771123737611,0.09152669,69489.0,69487.0,0.00683303]
[1771123737782,0.01957199,69489.0,69487.0,0.00683303]
[1771123737989,0.01274012,69488.0,69487.0,0.00683303]
[1771123738509,0.0158955,69489.0,69483.0,0.0719598]
[1771123738896,0.0158955,69489.0,69483.0,0.0739598]
[1771123739095,0.0158955,69489.0,69484.0,0.07195861]
[1771123739295,0.08778408,69490.0,69483.0,0.13166894]
[1771123739500,0.07211919,69494.0,69487.0,0.07295535]
[1771123739712,0.00390079,69493.0,69488.0,0.07195403]
[1771123739917,0.00407114,69494.0,69489.0,0.07195361]
[1771123741686,4e-05,69498.0,69489.0,0.05970914]
[1771123741830,4e-05,69498.0,69496.0,0.07194592]
[1771123742032,4e-05,69498.0,69496.0,0.02481304]
[1771123742273,4e-05,69498.0,69496.0,0.09675909]
[1771123742429,4e-05,69498.0,69496.0,0.09659218]
[1771123742849,0.00204,69498.0,69490.0,0.07195193]
[1771123743053,4e-05,69498.0,69490.0,0.07195193]
[1771123743250,0.07194756,69497.0,69496.0,0.003]
[1771123743472,0.07194703,69496.0,69489.0,0.09676669]
[1771123743672,0.07194756,69497.0,69490.0,0.07195275]
[1771123743879,0.07194768,69495.0,69489.0,0.02481304]
[1771123744072,0.07194768,69495.0,69487.0,0.0002]
[1771123744073,0.07195267,69491.0,69487.0,0.0002]
[1771123744260,0.07195267,69491.0,69487.0,0.00033035]
[1771123745016,0.02443923,69492.0,69490.0,0.003]
[1771123745221,0.07194984,69493.0,69487.0,0.00033035]
[1771123745425,0.07195309,69490.0,69487.0,0.00033035]
[1771123745567,0.002,69491.0,69487.0,0.00033035]
[1771123745770,0.07195092,69492.0,69487.0,0.00033035]
[1771123746003,0.001,69491.0,69487.0,0.00033035]
[1771123746209,0.07195092,69492.0,69487.0,0.00033035]
[1771123746413,0.07195006,69493.0,69487.0,0.00033035]
[1771123746842,0.07195443,69489.0,69484.0,4e-05]
[1771123747057,0.09639366,69489.0,69484.0,4e-05]
[1771123747463,0.07195318,69490.0,69484.0,4e-05]
[1771123748267,4e-05,69488.0,69484.0,4e-05]
[1771123748589,0.07199318,69490.0,69484.0,4e-05]
[1771123748877,0.07399318,69490.0,69484.0,4e-05]
[1771123749426,0.001,69488.0,69484.0,4e-05]
[1771123750260,0.001,69488.0,69484.0,0.07199892]
[1771123750461,0.001,69488.0,69484.0,0.07183198]
[1771123750660,0.07199283,69490.0,69483.0,0.07195985]
[1771123750898,0.07399283,69490.0,69483.0,0.07195985]
[1771123751311,0.07199283,69490.0,69483.0,0.07195985]
[1771123751519,0.001,69488.0,69484.0,0.07195897]
[1771123751689,0.001,69488.0,69482.0,0.28784302]
[1771123751902,4e-05,69490.0,69486.0,0.07195604]
[1771123752126,0.00204,69490.0,69486.0,0.07195604]
[1771123752306,4e-05,69490.0,69486.0,0.07195604]
[1771123752709,0.001,69488.0,69486.0,0.07195604]
[1771123752910,4e-05,69494.0,69482.0,4e-05]
[1771123753088,0.07211968,69494.0,69487.0,0.07195514]
[1771123753523,0.07195029,69493.0,69485.0,0.07195698]
[1771123753727,0.07195029,69493.0,69486.0,0.07195609]
[1771123753927,0.07211968,69494.0,69487.0,0.07195573]
[1771123754150,0.002,69490.0,69487.0,0.07195573]
[1771123754353,0.07211968,69494.0,69487.0,0.07195573]
[1771123754547,0.07195011,69493.0,69486.0,0.07195672]
[1771123754753,0.07295011,69493.0,69486.0,0.07195672]
[1771123754958,0.07195011,69493.0,69487.0,0.0719558]
[1771123755410,0.002,69490.0,69487.0,0.0719558]
[1771123755538,0.07195011,69493.0,69487.0,0.0719558]
[1771123755742,0.07195011,69493.0,69486.0,0.0719566]
[1771123755963,0.07495011,69493.0,69486.0,0.0719566]
[1771123756644,0.07495011,69493.0,69486.0,0.07178966]
[1771123757045,0.07195011,69493.0,69486.0,0.07178966]
[1771123757893,0.001,69490.0,69487.0,0.07195561]
[1771123758099,0.07211972,69494.0,69487.0,0.07195561]
[1771123758302,0.0004,69493.0,69487.0,0.07195561]
[1771123758497,0.0024,69493.0,69487.0,0.07195561]
[1771123758830,0.0004,69493.0,69487.0,0.07195561]
[1771123759203,0.001,69490.0,69487.0,0.07195561]
[1771123759607,0.001,69490.0,69486.0,0.07178966]
[1771123760255,0.28780291,69492.0,69484.0,0.0002]
[1771123760372,0.07195072,69492.0,69484.0,0.07215838]
[1771123760572,0.07195072,69492.0,69485.0,0.0719573]
[1771123761257,0.001,69490.0,69486.0,0.07195627]
[1771123761394,0.07235007,69493.0,69486.0,0.09460991]
[1771123761749,0.002,69492.0,69486.0,0.09460991]
[1771123762079,0.07235007,69493.0,69486.0,0.09460991]
[1771123763202,4e-05,69488.0,69486.0,0.09460991]
[1771123763435,4e-05,69490.0,69486.0,0.09560991]
[1771123763805,4e-05,69490.0,69486.0,0.07195627]
[1771123764119,4e-05,69490.0,69486.0,0.07178933]
[1771123765261,4e-05,69490.0,69486.0,0.07378933]
[1771123765640,4e-05,69490.0,69486.0,0.09644297]
[1771123766516,4e-05,69490.0,69486.0,0.09444297]
[1771123766874,4e-05,69490.0,69486.0,0.07378933]
[1771123767074,0.00044,69490.0,69486.0,0.07178933]
[1771123767472,0.00144,69490.0,69486.0,0.07178933]
[1771123770314,0.00044,69490.0,69486.0,0.07178933]
[1771123770497,0.00144,69490.0,69486.0,0.07178933]
[1771123770858,0.00144,69490.0,69484.0,0.07215838]
[1771123771156,0.00144,69490.0,69485.0,0.07179067]
[1771123771697,0.00044,69490.0,69485.0,0.07179067]
[1771123773644,0.00144,69490.0,69485.0,0.07179067]
[1771123773875,0.07196211,69481.0,69480.0,1e-08]
[1771123774146,0.28782594,69487.0,69470.0,0.07209286]
[1771123774320,0.28782594,69487.0,69471.0,0.07197227]
[1771123774321,0.07196597,69478.0,69471.0,0.07197227]
[1771123774694,0.07196627,69477.0,69470.0,0.07209326]
[1771123775479,0.07196349,69480.0,69470.0,0.00012]
[1771123775631,0.07196349,69480.0,69470.0,0.43528209]
[1771123775993,0.07196349,69480.0,69472.0,0.07197043]
[1771123776198,0.07196349,69480.0,69473.0,0.0719704]
[1771123776654,0.07196349,69480.0,69478.0,0.0002]
[1771123777055,0.07196419,69479.0,69478.0,0.0002]
[1771123777306,1e-08,69473.0,69470.0,0.00208]
[1771123777524,0.07197108,69473.0,69469.0,0.34456]
[1771123777698,0.06147194,69473.0,69462.0,0.0719818]
[1771123777909,0.06147194,69473.0,69461.0,0.50870199]
[1771123777910,0.07197385,69470.0,69461.0,0.50870199]
[1771123778198,0.06147194,69473.0,69461.0,0.50870271]
[1771123778532,0.07197481,69469.0,69462.0,0.07198156]
[1771123778655,4e-05,69470.0,69461.0,0.50883347]
[1771123778656,4e-05,69470.0,69461.0,0.43685076]
[1771123778850,4e-05,69470.0,69463.0,0.07198049]
[1771123779298,0.07201372,69470.0,69463.0,0.07198049]
[1771123779498,0.07201376,69470.0,69462.0,0.07198172]
[1771123779658,0.03322579,69468.0,69462.0,0.07198172]
[1771123781320,0.03722579,69468.0,69462.0,0.07198172]
[1771123781537,0.03322579,69468.0,69462.0,0.07198172]
[1771123781839,0.03722579,69468.0,69462.0,0.07198172]
[1771123782039,0.10151184,69468.0,69463.0,0.07198071]
[1771123782389,0.10151184,69468.0,69462.0,0.0719818]
[1771123783008,0.10151184,69468.0,69461.0,0.00013076]
[1771123783009,0.09751184,69468.0,69461.0,0.00013076]
[1771123783187,0.10151184,69468.0,69461.0,0.07211291]
[1771123783588,0.10151184,69468.0,69463.0,0.07198065]
[1771123783936,0.09751184,69468.0,69463.0,0.07198065]
[1771123784336,0.10151184,69468.0,69463.0,0.07198065]
[1771123784587,0.09751184,69468.0,69463.0,0.07198065]
[1771123784948,0.10151184,69468.0,69463.0,0.07198065]
[1771123785402,0.10151184,69468.0,69462.0,0.07218159]
[1771123785764,0.10151184,69468.0,69463.0,0.07198073]
[1771123785984,0.03722579,69468.0,69459.0,0.28793832]
[1771123786160,0.05793726,69468.0,69459.0,0.28837443]
[1771123786381,0.03322579,69468.0,69461.0,0.07198203]
[1771123786584,0.03722579,69468.0,69461.0,0.07198203]
[1771123786760,0.03322579,69468.0,69462.0,0.071981]
[1771123787105,0.03522579,69468.0,69463.0,0.07198057]
[1771123787256,0.03322579,69468.0,69463.0,0.07198057]
[1771123787691,0.03722579,69468.0,69463.0,0.07198057]
[1771123787902,0.03322579,69468.0,69463.0,0.07198057]
[1771123788344,0.03722579,69468.0,69462.0,0.07198175]
[1771123789898,0.03322579,69468.0,69462.0,0.07198175]
[1771123790103,0.03722579,69468.0,69462.0,0.07198175]
[1771123790303,0.03322579,69468.0,69462.0,0.07198175]
[1771123790880,0.03722579,69468.0,69462.0,0.07198088]
[1771123791140,0.03722579,69468.0,69460.0,0.07198202]
[1771123791355,0.03722579,69468.0,69459.0,0.00043611]
[1771123791770,4e-05,69472.0,69459.0,0.00043611]
[1771123791771,4e-05,69472.0,69467.0,0.07197571]
[1771123791951,4e-05,69472.0,69468.0,0.02444444]
[1771123792305,4e-05,69472.0,69468.0,0.09641988]
[1771123792503,4e-05,69472.0,69468.0,0.02444444]
[1771123792710,4e-05,69472.0,69467.0,0.07197649]
[1771123793106,0.004,69468.0,69467.0,0.07197649]
[1771123793947,4e-05,69472.0,69467.0,0.07197649]
[1771123794144,4e-05,69472.0,69466.0,0.07197723]
[1771123794145,0.00304,69472.0,69468.0,0.07197543]
[1771123794484,4e-05,69472.0,69468.0,0.07197543]
[1771123796364,0.00044,69482.0,69470.0,0.00016]
[1771123796564,0.00044,69482.0,69476.0,0.07196651]
[1771123796779,0.07196305,69481.0,69474.0,0.07196933]
[1771123797105,0.00044,69482.0,69473.0,0.02444444]
[1771123797302,0.00044,69482.0,69478.0,0.06121934]
[1771123797500,0.00044,69482.0,69476.0,0.07196674]
[1771123798347,0.07240111,69482.0,69476.0,0.07196674]
[1771123798776,0.07240111,69482.0,69475.0,0.07196812]
[1771123799760,0.07340111,69482.0,69475.0,0.07196812]
[1771123799965,0.07240111,69482.0,69475.0,0.07196812]
[1771123800527,0.07340111,69482.0,69475.0,0.07196812]
[1771123800779,0.06053503,69481.0,69470.0,0.00016]
[1771123801008,0.07196454,69479.0,69471.0,0.07197247]
[1771123801244,0.07196379,69480.0,69472.0,0.07197144]
[1771123801910,0.07196211,69481.0,69471.0,0.02444444]
[1771123802113,0.00144,69482.0,69471.0,0.02464444]
[1771123802114,0.28785675,69480.0,69471.0,0.02464444]
[1771123802320,0.28785675,69480.0,69471.0,0.0002]
[1771123803194,0.07196798,69476.0,69471.0,0.0002]
[1771123803373,0.07196429,69479.0,69471.0,0.0002]
[1771123803571,0.07196406,69480.0,69473.0,0.07197035]
[1771123803787,0.07196406,69480.0,69472.0,0.07197144]
[1771123805037,0.00044,69482.0,69471.0,0.0002]
[1771123805196,0.07196282,69481.0,69472.0,0.07197144]
[1771123805562,0.07196327,69480.0,69473.0,0.0719696]
[1771123806143,0.07196327,69480.0,69473.0,0.0739696]
[1771123806552,0.07196327,69480.0,69473.0,0.0719696]
[1771123806720,0.07296327,69480.0,69473.0,0.0719696]
[1771123808146,4e-05,69474.0,69473.0,0.0719296]
[1771123809673,4e-05,69474.0,69473.0,0.0739296]
[1771123811751,4e-05,69474.0,69473.0,0.06699889]
[1771123812079,4e-05,69474.0,69473.0,0.06899889]
[1771123816574,0.07196401,69481.0,69473.0,0.06899889]
[1771123816575,1e-08,69482.0,69481.0,0.07196211]
[1771123816781,0.00806641,69490.0,69478.0,0.06143574]
[1771123816782,0.02418569,69502.0,69489.0,0.07195337]
[1771123816989,0.07194771,69495.0,69490.0,0.02373505]
[1771123817406,0.07194771,69495.0,69488.0,0.09568954]
[1771123817818,0.00053068,69493.0,69488.0,0.09568954]
[1771123818815,0.00053068,69493.0,69488.0,0.09868954]
[1771123819171,0.00053068,69493.0,69489.0,0.02373505]
[1771123820204,0.00053068,69493.0,69489.0,0.02356811]
[1771123820801,0.00053068,69493.0,69489.0,0.09552188]
[1771123820969,0.00053068,69493.0,69490.0,0.07195209]
[1771123821169,0.00253068,69493.0,69490.0,0.07195209]
[1771123821426,0.00053068,69493.0,69490.0,0.09568714]
[1771123821570,0.00053068,69493.0,69490.0,0.02373505]
[1771123821771,0.00253068,69493.0,69490.0,0.02373505]
[1771123821997,0.00053068,69493.0,69490.0,0.02373505]
[1771123822406,0.00153068,69493.0,69490.0,0.02373505]
[1771123822631,0.00153068,69493.0,69490.0,0.09568778]
[1771123822839,0.00053068,69493.0,69490.0,0.09568778]
[1771123823307,0.00053068,69493.0,69488.0,0.04363556]
[1771123823507,0.00053068,69493.0,69488.0,0.06737061]
[1771123823904,0.00153068,69493.0,69492.0,0.07195072]
[1771123824110,4e-05,69496.0,69491.0,0.07195102]
[1771123824111,4e-05,69496.0,69491.0,0.02373505]
[1771123824287,4e-05,69496.0,69493.0,0.06676962]
[1771123824489,4e-05,69496.0,69495.0,0.07194762]
[1771123824689,4e-05,69496.0,69493.0,0.07194897]
[1771123824887,4e-05,69496.0,69494.0,0.07194842]
[1771123828825,4e-05,69496.0,69494.0,0.07294842]
[1771123829218,0.00044,69496.0,69494.0,0.001]
[1771123829419,0.00044,69496.0,69494.0,0.07294835]
[1771123830084,0.00044,69496.0,69494.0,0.07194835]
[1771123834537,0.00044,69496.0,69495.0,0.07194762]
[1771123834742,4e-05,69498.0,69495.0,0.07194762]
[1771123835309,4e-05,69498.0,69494.0,0.07194835]
[1771123837144,4e-05,69498.0,69493.0,0.07194945]
[1771123837461,0.07194619,69497.0,69490.0,0.07195201]
[1771123837662,0.07195021,69493.0,69486.0,0.07199672]
[1771123837986,0.07195074,69492.0,69486.0,0.0721274]
[1771123838212,4e-05,69488.0,69486.0,0.00017068]
[1771123838382,0.0288652,69492.0,69486.0,0.00017068]
[1771123838583,4e-05,69492.0,69486.0,0.00017068]
[1771123838886,0.07195282,69490.0,69486.0,0.00017068]
[1771123839087,0.07199137,69492.0,69486.0,0.00017068]
[1771123839438,4e-05,69492.0,69486.0,0.00017068]
[1771123839646,0.07199135,69492.0,69486.0,0.00317068]
[1771123840066,0.07199135,69492.0,69486.0,0.00017068]
[1771123840265,4e-05,69492.0,69486.0,0.00017068]
[1771123840473,4e-05,69492.0,69487.0,0.0719559]
[1771123840673,4e-05,69492.0,69488.0,0.07195458]
[1771123842052,4e-05,69492.0,69489.0,0.07195291]
[1771123842771,4e-05,69492.0,69490.0,0.07195279]
[1771123842971,0.00204,69492.0,69491.0,0.07195176]
[1771123843171,4e-05,69492.0,69491.0,0.07195176]
[1771123843571,0.00404,69492.0,69491.0,0.07195176]
[1771123843818,4e-05,69494.0,69493.0,0.07194969]
[1771123844629,4e-05,69494.0,69493.0,0.07178277]
[1771123846314,0.00504,69494.0,69493.0,0.07178277]